lending/lending_fUSD_20250430
["ID","MTS","AMOUNT","RATE_DAILY","PERIOD"]
[359420482,1746001835045,246.95,0.0001896,2]
[359420483,1746001837649,-435.68139541,0.0002,2]
[359420484,1746001837662,-43832.45520854,0.0002,2]
[359420485,1746001837671,-20620.66919825,0.0002,2]
[359420486,1746001837683,-5799.06923783,0.0002,2]
[359420487,1746001837704,-1026.68994,0.0002,2]
[359420488,1746001837719,-1768.39999999,0.0002,2]
[359420489,1746001837731,-740.95,0.0002,2]
[359420490,1746001837743,-5350739.63170106,0.0002,2]
[359420491,1746001837814,-874.1922199,0.0002,2]
[359420744,1746001840097,-308.78,0.0002,2]
[359420755,1746001840148,-4741.35094822,0.0002,2]
[359421104,1746001842828,-284.50374596,0.000199,2]
[359421138,1746001843144,-9.46639994,0.000199,2]
[359421140,1746001843154,-1134.90360006,0.0002,2]
[359421330,1746001845525,-1353.19244804,0.0002,2]
[359421401,1746001846215,-182460.72458056,0.0002,2]
[359421403,1746001846227,-62554.27180934,0.0002,2]
[359421405,1746001846238,-6487.33388835,0.0002,2]
[359421408,1746001846249,-486.14657231,0.0002,2]
[359421514,1746002085698,250.0,0.00017,2]
[359421515,1746002086777,300.0,0.00019,2]
[359421516,1746002137237,4038.43704892,0.00019558,2]
[359421517,1746002137260,4588.43704892,0.00019558,2]
[359421518,1746002137282,4588.43704892,0.00019558,2]
[359421519,1746002214332,1000.0,0.00019266,2]
[359421520,1746002218662,500.0,0.00037808,30]
[359421521,1746002225868,500.0,0.00037808,30]
[359421522,1746002257714,250.0,0.00019292,2]
[359421523,1746002265137,665.34839988,0.00037808,30]
[359421524,1746002363671,10000.0,0.00037808,30]
[359421525,1746002376038,2067.0,0.00037808,30]
[359421526,1746002403234,156.20860496,0.0001954,2]
[359421527,1746002410470,500.0,0.000378,30]
[359421528,1746002484302,150.0,0.000378,30]
[359421530,1746002529057,366.87865664,0.00037,30]
[359421531,1746002532239,726.1319029,0.00018395,2]
[359421532,1746002532562,726.1319029,0.00018676,2]
[359421533,1746002532858,726.1319029,0.00018966,2]
[359421534,1746002533243,726.1319029,0.00019277,2]
[359421535,1746002533681,277.70083236,0.00019521,2]
[359421536,1746002533703,448.43107054,0.00019521,2]
[359421537,1746002546143,284.5,0.00037808,30]
[359421538,1746002598451,796.93242777,0.000195,2]
[359421539,1746002616645,200.0,0.00019011,2]
[359421540,1746002627613,201.65,0.00037808,30]
[359421541,1746002639461,2140.15,0.00016996,2]
[359421542,1746002639680,1002.92355061,0.0001926,2]
[359421543,1746002639703,1137.22644939,0.0001926,2]
[359421544,1746002664793,249.27,0.00018871,2]
[359421545,1746002684764,150.0,0.00018866,2]
[359421546,1746002691386,210.0,0.00037808,30]
[359421547,1746002749023,314.07803358,0.00037808,30]
[359421548,1746002781917,189.28,0.00019404,2]
[359421588,1746002917633,166.66,0.00019421,2]
[359421589,1746002933424,741.17872244,0.00037808,30]
[359421590,1746002946881,158.5213762,0.00019457,2]
[359421593,1746003013051,271.31,0.00018863,2]
[359421600,1746003031874,-766.78046884,0.00019557,2]
[359421601,1746003031885,-200.0,0.00019557,2]
[359421602,1746003031897,-250.0,0.00019557,2]
[359421603,1746003031907,-850.0,0.00019557,2]
[359421604,1746003031918,-1200.0,0.00019557,2]
[359421605,1746003031928,-300.0,0.00019557,2]
[359421606,1746003031937,-200.0,0.00019557,2]
[359421607,1746003031947,-200.0,0.00019557,2]
[359421608,1746003031957,-10684.68885324,0.00019558,2]
[359421609,1746003031966,-404.1503179,0.00019558,2]
[359421610,1746003031976,-70108.57997398,0.00019558,2]
[359421611,1746003031986,-9999.99,0.00019774,2]
[359421612,1746003031995,-257.72,0.00019774,2]
[359421613,1746003032005,-296.63,0.00019774,2]
[359421614,1746003032014,-675.17,0.00019774,2]
[359421615,1746003032024,-1430.52,0.00019774,2]
[359421616,1746003032033,-631.03808419,0.00019782,2]
[359421617,1746003032042,-1000.0,0.00019782,2]
[359421618,1746003032052,-224.7035,0.00019791,2]
[359421619,1746003032062,-447.2031,0.000198,2]
[359421620,1746003032071,-523.2725,0.000198,2]
[359421621,1746003032081,-355.7771,0.000198,2]
[359421622,1746003032091,-6445.83,0.000198,2]
[359421623,1746003032101,-150.99,0.000198,2]
[359421624,1746003032110,-648.42,0.000198,2]
[359421625,1746003032119,-999.99,0.000198,2]
[359421626,1746003032129,-7925.52366609,0.000198,2]
[359421627,1746003032140,-2074.46633391,0.000198,2]
[359421628,1746003032150,-3796.90844109,0.000198,2]
[359421629,1746003032166,-796.98009551,0.000198,2]
[359421630,1746003032178,-499.78772144,0.000198,2]
[359421631,1746003032190,-2049.95374196,0.000198,2]
[359421633,1746003032199,-2500.0,0.000198,2]
[359421635,1746003032209,-164.8678569,0.000198,2]
[359421636,1746003032219,-726.13190291,0.0001981,2]
[359421637,1746003032228,-238.04111457,0.00019854,2]
[359421638,1746003032239,-4724.80045856,0.00019861,2]
[359421639,1746003032249,-238.04111451,0.00019862,2]
[359421641,1746003032259,-238.04111451,0.00019869,2]
[359421642,1746003032268,-1000.0,0.00019873,2]
[359421643,1746003032277,-1000.0,0.00019873,2]
[359421644,1746003032286,-1000.0,0.00019873,2]
[359421645,1746003032296,-1000.0,0.00019873,2]
[359421646,1746003032305,-1000.0,0.00019873,2]
[359421647,1746003032315,-1000.0,0.00019873,2]
[359421648,1746003032324,-1000.0,0.00019873,2]
[359421649,1746003032458,-639.0,0.00019873,2]
[359421650,1746003032468,-500.0,0.00019873,2]
[359421651,1746003032477,-500.0,0.00019873,2]
[359421652,1746003032488,-169.91852973,0.00019873,2]
[359421653,1746003032497,-500.0,0.00019873,2]
[359421654,1746003032507,-500.0,0.00019873,2]
[359421655,1746003032516,-500.0,0.00019873,2]
[359421656,1746003032525,-504.36773073,0.00019873,2]
[359421657,1746003032534,-500.0,0.00019873,2]
[359421658,1746003032543,-500.0,0.00019873,2]
[359421659,1746003032553,-500.0,0.00019873,2]
[359421660,1746003032562,-337.37152736,0.00019873,2]
[359421661,1746003032574,-162.62847264,0.00019873,2]
[359421662,1746003032583,-500.0,0.00019873,2]
[359421663,1746003032593,-37.37152736,0.00019873,2]
[359421668,1746003037835,-281.66,0.00019873,2]
[359421669,1746003037942,-180.96847264,0.00019873,2]
[359421670,1746003037952,-500.0,0.00019873,2]
[359421671,1746003037962,-500.0,0.00019873,2]
[359421672,1746003037971,-6255.88608866,0.00019874,2]
[359421673,1746003037984,-6244.11391134,0.00019874,2]
[359421674,1746003037994,-2744.106,0.00019874,2]
[359421675,1746003038003,-274.002,0.00019874,2]
[359421676,1746003038012,-1010.30678866,0.00019874,2]
[359421677,1746003038024,-3714.4936699,0.00019874,2]
[359421678,1746003038033,-238.04111451,0.00019877,2]
[359421679,1746003038044,-6288.53409455,0.00019881,2]
[359421680,1746003038054,-4208.95612104,0.00019882,2]
[359421681,1746003038071,-8291.04387896,0.00019882,2]
[359421682,1746003038080,-5800.0,0.00019883,2]
[359421683,1746003038090,-238.04111451,0.00019885,2]
[359421684,1746003038099,-4724.80045856,0.00019887,2]
[359421685,1746003038108,-12500.0,0.00019891,2]
[359421686,1746003038117,-3986.81454797,0.00019892,2]
[359421687,1746003038128,-1813.18545203,0.00019892,2]
[359421688,1746003038137,-238.04111451,0.00019892,2]
[359421689,1746003038146,-500.0,0.000199,2]
[359421690,1746003038155,-2697.8771,0.000199,2]
[359421691,1746003038165,-631.0568,0.000199,2]
[359421692,1746003038174,-10650.4444,0.000199,2]
[359421693,1746003038183,-12500.0,0.000199,2]
[359421694,1746003038192,-505.622,0.000199,2]
[359421695,1746003038200,-2162.0964,0.000199,2]
[359421696,1746003038341,-8740.6536,0.000199,2]
[359421697,1746003038351,-1000.0,0.000199,2]
[359421698,1746003038361,-282.57682104,0.000199,2]
[359421699,1746003038370,-5800.0,0.000199,2]
[359421700,1746003038380,-166.80756493,0.000199,2]
[359421701,1746003038390,-524.73515963,0.000199,2]
[359421702,1746003038400,-4724.80045856,0.000199,2]
[359421703,1746003038409,-27958.01832817,0.000199,2]
[359421704,1746003038419,-238.04111451,0.000199,2]
[359421705,1746003038429,-9071.68100635,0.000199,2]
[359421706,1746003038439,-229.55630329,0.000199,2]
[359421707,1746003038449,-168.56609644,0.000199,2]
[359421708,1746003038458,-1511.02857498,0.000199,2]
[359421709,1746003038468,-164.8678569,0.000199,2]
[359421710,1746003038478,-280.17388614,0.00019973,2]
[359421711,1746003038487,-500.0,0.00019973,2]
[359421712,1746003038498,-500.0,0.00019973,2]
[359421713,1746003038508,-500.0,0.00019973,2]
[359421714,1746003038517,-500.0,0.00019973,2]
[359421715,1746003038527,-500.0,0.00019973,2]
[359421716,1746003038536,-500.0,0.00019973,2]
[359421717,1746003038545,-500.0,0.00019973,2]
[359421719,1746003038555,-605.49057199,0.00019973,2]
[359421721,1746003038564,-500.0,0.00019973,2]
[359421723,1746003038573,-500.0,0.00019973,2]
[359421725,1746003038583,-500.86272975,0.00019973,2]
[359421727,1746003038593,-500.0,0.00019973,2]
[359421729,1746003038603,-500.0,0.00019973,2]
[359421731,1746003038613,-500.0,0.00019973,2]
[359421733,1746003038622,-500.0,0.00019973,2]
[359421735,1746003038631,-301.84461807,0.00019973,2]
[359421737,1746003038640,-243.25265261,0.00019973,2]
[359421739,1746003038649,-500.0,0.00019973,2]
[359421741,1746003038658,-208.35397282,0.00019973,2]
[359421743,1746003038667,-501.90027515,0.00019973,2]
[359421745,1746003038676,-509.1493322,0.00019973,2]
[359421746,1746003038685,-500.0,0.00019999,2]
[359421748,1746003038694,-322.76299079,0.00019999,2]
[359421750,1746003038703,-300.0,0.00019999,2]
[359421752,1746003038713,-300.0,0.00019999,2]
[359421755,1746003038723,-387.39545994,0.00019999,2]
[359421757,1746003038732,-1000.00009499,0.00019999,2]
[359421759,1746003038742,-523.37854976,0.0002,2]
[359421760,1746003038752,-111413.51678224,0.0002,2]
[359421763,1746003038763,-2092099.15898818,0.0002,2]
[359421765,1746003038773,-39742.26236548,0.0002,2]
[359421766,1746003038782,-301.26767643,0.0002,2]
[359421768,1746003038791,-10000.0,0.0002,2]
[359421770,1746003038801,-1482.76242669,0.0002,2]
[359421772,1746003038813,-481.2480226,0.0002,2]
[359421774,1746003038822,-18839.17559419,0.0002,2]
[359421776,1746003038831,-3201585.48748487,0.0002,2]
[359421778,1746003038843,-15074.12066162,0.0002,2]
[359421780,1746003038854,-19218.23614524,0.0002,2]
[359421782,1746003038865,-589.97551441,0.0002,2]
[359421923,1746003040273,-1029.61234503,0.0002,2]
[359421944,1746003040475,-331.07,0.0002,2]
[359421946,1746003040487,-4682.02666871,0.0002,2]
[359422001,1746003042995,-271.92,0.0002,2]
[359422002,1746003043151,-755.2,0.0002,2]
[359422010,1746003045828,-937.69234994,0.0002,2]
[359422011,1746003045882,-1162.58130281,0.0002,2]
[359422012,1746003046043,-14308.40285783,0.0002,2]
[359422013,1746003046055,-13964.49477114,0.0002,2]
[359422014,1746003046149,-2150.10003,0.0002,2]
[359422015,1746003046161,-6895.0512998,0.0002,2]
[359422030,1746003142363,1700.0,0.00037808,60]
[359422031,1746003279725,200.0,0.00019621,2]
[359422032,1746003289264,80000.0,0.00037808,30]
[359422033,1746003297688,250.0,0.00019621,2]
[359422034,1746003329946,57.5,0.0001961,2]
[359422035,1746003391415,150.0,0.000378,30]
[359422036,1746003428939,2266.16922333,0.0001951,2]
[359422037,1746003428963,88.59333291,0.0001951,2]
[359422038,1746003433632,-160.0,0.00019553,2]
[359422040,1746003481875,300.0,0.00019552,2]
[359422041,1746003491683,1134.72140524,0.00037808,120]
[359422042,1746003552108,633.64845851,0.00037808,30]
[359422043,1746003601331,232.0,0.00019552,2]
[359422044,1746003601354,540.0,0.00019552,2]
[359422045,1746003616703,250.0,0.000378,30]
[359422046,1746003628061,250.0,0.000378,30]
[359422047,1746003628434,507.5176,0.0001951,2]
[359422048,1746003640750,351.1,0.000378,30]
[359422049,1746003662341,250.0,0.000378,30]
[359422050,1746003693417,250.0,0.000378,30]
[359422051,1746003703801,250.0,0.000378,30]
[359422052,1746003713953,250.0,0.000378,30]
[359422053,1746003724981,250.0,0.000378,30]
[359422054,1746003733570,250.0,0.000378,30]
[359422055,1746003740570,250.0,0.000378,30]
[359422056,1746003753974,250.0,0.000378,30]
[359422057,1746003790300,200.0,0.00019047,2]
[359422058,1746003806326,1100.0,0.00037808,90]
[359422059,1746003821400,250.0,0.00019326,2]
[359422060,1746003832947,854.42978903,0.00037808,30]
[359422061,1746003833974,500.0,0.00019,2]
[359422062,1746003846524,1926.13,0.00017123,2]
[359422063,1746003846736,1116.19611601,0.00019387,2]
[359422064,1746003846760,809.93388399,0.00019387,2]
[359422065,1746003904451,250.0,0.00017,2]
[359422066,1746003905541,300.0,0.00019,2]
[359422275,1746004083180,188.56,0.00018951,2]
[359422276,1746004084407,188.56,0.00026058,120]
[359422277,1746004084454,188.56,0.00028426,120]
[359422414,1746004155965,50000.0,0.00037808,30]
[359422415,1746004159946,50000.0,0.00037808,31]
[359422416,1746004163649,50000.0,0.00037808,32]
[359422417,1746004169503,50000.0,0.00037808,33]
[359422418,1746004174457,50000.0,0.00037808,34]
[359422426,1746004232357,-161.3413666,0.0001953,2]
[359422427,1746004232367,-147.29125358,0.00019536,2]
[359422428,1746004232378,-52.70874642,0.00019536,2]
[359422429,1746004232388,-200.0,0.00019545,2]
[359422430,1746004232398,-189.28,0.00019546,2]
[359422431,1746004232408,-1200.0,0.00019552,2]
[359422432,1746004232417,-300.0,0.00019552,2]
[359422434,1746004232426,-300.0,0.00019552,2]
[359422436,1746004232435,-522.37564918,0.00019553,2]
[359422438,1746004232454,-14220.74287185,0.00019553,2]
[359422439,1746004232465,-1100.0,0.00019553,2]
[359422440,1746004232476,-1834.2,0.00019553,2]
[359422447,1746004238094,-260.5148479,0.00019553,2]
[359422448,1746004238148,-5802.16663107,0.00019553,2]
[359422449,1746004238158,-157.21,0.00019554,2]
[359422450,1746004238167,-2195.284,0.00019609,2]
[359422451,1746004238176,-219.202,0.00019609,2]
[359422452,1746004238185,-550.0,0.00019609,2]
[359422453,1746004238195,-77448.7001187,0.0001961,2]
[359422454,1746004238204,-500.0,0.00019673,2]
[359422455,1746004238213,-500.0,0.00019673,2]
[359422456,1746004238223,-393.37197229,0.00019673,2]
[359422457,1746004238232,-500.0,0.00019673,2]
[359422458,1746004238241,-500.77379964,0.00019673,2]
[359422459,1746004238250,-500.0,0.00019673,2]
[359422460,1746004238259,-500.0,0.00019673,2]
[359422461,1746004238271,-502.01998914,0.00019673,2]
[359422462,1746004238281,-1000.0,0.00019687,2]
[359422463,1746004238290,-2500.0,0.00019734,2]
[359422464,1746004238300,-5407.15,0.00019773,2]
[359422465,1746004238310,-631.03808419,0.00019773,2]
[359422466,1746004238319,-158.69407634,0.00019773,2]
[359422467,1746004238329,-3307.36032108,0.00019773,2]
[359422468,1746004238338,-1000.0,0.00019774,2]
[359422469,1746004238347,-999.99,0.00019774,2]
[359422470,1746004238358,-150.99,0.00019774,2]
[359422472,1746004238367,-500.0,0.00019781,2]
[359422473,1746004238376,-2162.0964,0.000198,2]
[359422474,1746004238385,-27716.84159913,0.00019834,2]
[359422475,1746004238397,-158213.29343856,0.00019834,2]
[359422476,1746004238406,-631.0568,0.00019873,2]
[359422478,1746004238415,-507.19426611,0.00019873,2]
[359422479,1746004238424,-500.0,0.00019873,2]
[359422480,1746004238433,-500.0,0.00019873,2]
[359422481,1746004238443,-8740.6536,0.00019886,2]
[359422482,1746004238457,-2354.76255624,0.00019899,2]
[359422484,1746004238467,-10650.4444,0.000199,2]
[359422486,1746004238477,-2697.8771,0.000199,2]
[359422487,1746004238486,-282.57682104,0.000199,2]
[359422489,1746004238497,-505.622,0.000199,2]
[359422492,1746004238506,-1476.2536,0.000199,2]
[359422495,1746004238515,-524.73515963,0.000199,2]
[359422497,1746004238524,-166.80756493,0.000199,2]
[359422498,1746004238534,-415.93135478,0.000199,2]
[359422499,1746004238544,-168.56609644,0.000199,2]
[359422500,1746004238553,-9071.68100635,0.000199,2]
[359422501,1746004238563,-1511.02857498,0.000199,2]
[359422502,1746004238573,-500.0,0.00019973,2]
[359422503,1746004238583,-500.0,0.00019973,2]
[359422504,1746004238593,-500.0,0.00019973,2]
[359422505,1746004238603,-500.0,0.00019973,2]
[359422506,1746004238614,-500.0,0.00019973,2]
[359422507,1746004238623,-605.49057199,0.00019973,2]
[359422508,1746004238633,-500.0,0.00019973,2]
[359422509,1746004238643,-500.0,0.00019973,2]
[359422510,1746004238653,-280.17388614,0.00019973,2]
[359422511,1746004238661,-500.0,0.00019973,2]
[359422512,1746004238671,-500.0,0.00019973,2]
[359422513,1746004238681,-500.0,0.00019973,2]
[359422514,1746004238690,-500.86272975,0.00019973,2]
[359422515,1746004238700,-500.0,0.00019973,2]
[359422516,1746004238710,-500.0,0.00019973,2]
[359422517,1746004238719,-243.25265261,0.00019973,2]
[359422518,1746004238728,-301.84461807,0.00019973,2]
[359422519,1746004238738,-500.0,0.00019973,2]
[359422520,1746004238748,-509.1493322,0.00019973,2]
[359422521,1746004238758,-208.35397282,0.00019973,2]
[359422522,1746004238768,-501.90027515,0.00019973,2]
[359422523,1746004238777,-500.0,0.00019973,2]
[359422524,1746004238787,-3632.5459255,0.00019986,2]
[359422525,1746004238796,-19062.5367442,0.00019986,2]
[359422526,1746004238806,-2565.2814578,0.00019986,2]
[359422527,1746004238816,-104569.7865534,0.00019986,2]
[359422528,1746004238825,-8009.1226148,0.00019986,2]
[359422529,1746004238834,-1487.0882911,0.00019986,2]
[359422530,1746004238843,-162.86045543,0.00019999,2]
[359422531,1746004238853,-4081350.17933356,0.0002,2]
[359422532,1746004238865,-3950.0,0.0002,2]
[359422533,1746004238874,-1251.74832259,0.0002,2]
[359422534,1746004238883,-11842.65790871,0.0002,2]
[359422535,1746004238892,-1010.00562334,0.0002,2]
[359422536,1746004238901,-1761.28932056,0.0002,2]
[359422537,1746004238909,-88944.72839047,0.0002,2]
[359422538,1746004238917,-201.55005161,0.0002,2]
[359422539,1746004238925,-170.45734896,0.0002,2]
[359422540,1746004238935,-266.93514752,0.0002,2]
[359422541,1746004238944,-151.0,0.0002,2]
[359422542,1746004238953,-2000.0,0.0002,4]
[359422543,1746004238963,-192.02180146,0.0002001,2]
[359422544,1746004238971,-5772.0,0.0002001,2]
[359422545,1746004238981,-166.66,0.00020062,2]
[359422546,1746004238990,-500.0,0.0002011,2]
[359422547,1746004238999,-907.92,0.000202,2]
[359422548,1746004239008,-258.22,0.00020298,2]
[359422549,1746004239017,-3307.36032099,0.00020321,2]
[359422550,1746004239026,-245.39902633,0.00020418,2]
[359422551,1746004239035,-5941.4676668,0.000207,2]
[359422552,1746004239045,-166.66,0.00020704,2]
[359422553,1746004239054,-500.0,0.0002074,2]
[359422554,1746004239064,-3307.36032099,0.0002087,2]
[359422555,1746004239073,-350.0,0.00021,2]
[359422556,1746004239082,-151.0,0.00021052,2]
[359422557,1746004239092,-187.10541319,0.00021052,2]
[359422558,1746004239103,-207.4,0.00021052,2]
[359422559,1746004239112,-6964.21,0.00021078,2]
[359422560,1746004239121,-300.0,0.00021184,2]
[359422561,1746004239132,-420.0,0.000213,2]
[359422562,1746004239141,-420.0,0.000213,2]
[359422563,1746004239150,-2795.80183281,0.00021309,2]
[359422564,1746004239160,-188.56,0.0002132,2]
[359422565,1746004239169,-166.66,0.00021345,2]
[359422566,1746004239178,-1680.0,0.00021402,2]
[359422567,1746004239187,-3307.36032099,0.00021418,2]
[359422568,1746004239196,-258.22,0.00021426,2]
[359422569,1746004239206,-250.0,0.00021483,2]
[359422570,1746004239215,-200.0,0.00021483,2]
[359422571,1746004239224,-250.0,0.00021483,2]
[359422572,1746004239233,-200.0,0.00021483,2]
[359422573,1746004239243,-250.0,0.00021483,2]
[359422574,1746004239252,-200.0,0.00021483,2]
[359422575,1746004239261,-500.0,0.00021507,2]
[359422576,1746004239270,-1000.0,0.00021513,2]
[359422577,1746004239279,-1000.0,0.00021513,2]
[359422578,1746004239288,-1000.0,0.00021513,2]
[359422579,1746004239297,-1000.0,0.00021513,2]
[359422580,1746004239307,-1000.0,0.00021513,2]
[359422581,1746004239316,-1000.0,0.00021513,2]
[359422582,1746004239325,-1000.0,0.00021513,2]
[359422583,1746004239335,-1000.0,0.00021513,2]
[359422584,1746004239344,-1000.0,0.00021513,2]
[359422585,1746004239354,-1000.0,0.00021513,2]
[359422586,1746004239363,-1000.0,0.00021513,2]
[359422587,1746004239372,-1000.0,0.00021513,2]
[359422588,1746004239381,-1000.0,0.00021513,2]
[359422589,1746004239390,-1000.0,0.00021513,2]
[359422590,1746004239399,-1000.0,0.00021513,2]
[359422591,1746004239409,-1000.0,0.00021513,2]
[359422592,1746004239418,-1000.0,0.00021513,2]
[359422593,1746004239427,-1000.0,0.00021513,2]
[359422594,1746004239437,-1000.0,0.00021513,2]
[359422595,1746004239448,-1000.0,0.00021513,2]
[359422596,1746004239459,-1000.0,0.00021513,2]
[359422597,1746004239468,-1000.0,0.00021513,2]
[359422598,1746004239478,-1000.0,0.00021513,2]
[359422599,1746004239487,-1000.0,0.00021513,2]
[359422600,1746004239498,-1000.0,0.00021513,2]
[359422601,1746004239507,-1000.0,0.00021513,2]
[359422602,1746004239517,-1000.0,0.00021513,2]
[359422603,1746004239526,-1000.0,0.00021513,2]
[359422604,1746004239651,-1000.0,0.00021513,2]
[359422605,1746004239661,-1000.0,0.00021513,2]
[359422606,1746004239671,-1000.0,0.00021513,2]
[359422607,1746004239681,-1000.0,0.00021513,2]
[359422608,1746004239691,-1000.0,0.00021513,2]
[359422609,1746004239700,-1000.0,0.00021513,2]
[359422610,1746004239709,-1000.0,0.00021513,2]
[359422611,1746004239720,-1000.0,0.00021513,2]
[359422612,1746004239729,-1000.0,0.00021513,2]
[359422613,1746004239738,-1000.0,0.00021513,2]
[359422614,1746004239747,-1000.0,0.00021513,2]
[359422615,1746004239756,-1000.0,0.00021513,2]
[359422616,1746004239765,-1000.0,0.00021513,2]
[359422617,1746004239774,-1000.0,0.00021513,2]
[359422618,1746004239784,-1000.0,0.00021513,2]
[359422619,1746004239794,-1000.0,0.00021513,2]
[359422620,1746004239803,-1000.0,0.00021513,2]
[359422621,1746004239813,-1000.0,0.00021513,2]
[359422622,1746004239822,-1000.0,0.00021513,2]
[359422623,1746004239831,-1000.0,0.00021513,2]
[359422624,1746004239841,-1000.0,0.00021513,2]
[359422625,1746004239849,-1000.0,0.00021513,2]
[359422626,1746004239858,-1000.0,0.00021513,2]
[359422627,1746004239868,-1000.0,0.00021513,2]
[359422629,1746004239878,-1000.0,0.00021644,2]
[359422631,1746004239887,-1926.13,0.00021651,2]
[359422632,1746004239897,-2795.80183281,0.00021668,2]
[359422633,1746004239906,-7314.26836107,0.000217,2]
[359422634,1746004239915,-5053.54823058,0.000218,2]
[359422635,1746004239925,-150.0,0.00021917,2]
[359422636,1746004239934,-1983.0,0.00021948,2]
[359422637,1746004239944,-3307.36032099,0.00021967,2]
[359422638,1746004239953,-166.66,0.00021986,2]
[359422639,1746004239962,-2795.80183281,0.00022027,2]
[359422640,1746004239972,-1000.0,0.00022147,2]
[359422641,1746004239981,-2795.80183281,0.00022386,2]
[359422642,1746004239991,-151.0,0.00022421,2]
[359422643,1746004240001,-215.0738,0.00022421,2]
[359422644,1746004240011,-500.0,0.00022499,2]
[359422645,1746004240021,-34262.70999449,0.000225,2]
[359422647,1746004240030,-2392.69424248,0.000225,4]
[359422648,1746004240039,-2392.69424247,0.000225,4]
[359422649,1746004240048,-2392.69424247,0.000225,4]
[359422650,1746004240057,-3307.36032099,0.00022515,2]
[359422652,1746004240067,-258.22,0.00022554,2]
[359422654,1746004240076,-300.0,0.00022554,2]
[359422655,1746004240085,-2392.69424247,0.0002259,4]
[359422656,1746004240094,-166.66,0.00022627,2]
[359422657,1746004240103,-500.0,0.00022685,2]
[359422658,1746004240112,-505.3753181,0.0002271,2]
[359422659,1746004240121,-2795.80183281,0.00022745,2]
[359422660,1746004240131,-1503.18221885,0.00023,2]
[359422661,1746004240141,-400.0,0.00023,2]
[359422662,1746004240151,-3307.36032099,0.00023064,2]
[359422663,1746004240160,-2795.80183281,0.00023104,2]
[359422664,1746004240169,-33098.75819492,0.000232,2]
[359422665,1746004240179,-587.0,0.00023204,2]
[359422666,1746004240188,-587.0,0.00023204,2]
[359422667,1746004240198,-150.0,0.00023287,2]
[359422668,1746004240207,-2351.0,0.00023428,2]
[359422669,1746004240217,-2392.69424247,0.00023486,4]
[359422670,1746004240226,-200.0,0.000235,2]
[359422671,1746004240235,-3307.36032099,0.00023612,2]
[359422672,1746004240245,-258.22,0.00023681,2]
[359422673,1746004240254,-188.56,0.00023689,2]
[359422674,1746004240263,-151.0,0.0002379,2]
[359422675,1746004240273,-223.0315306,0.0002379,2]
[359422676,1746004240281,-171.95,0.00023836,2]
[359422677,1746004240289,-1926.13,0.00023915,2]
[359422678,1746004240298,-500.0,0.00023999,2]
[359422679,1746004240307,-500.0,0.00024,3]
[359422680,1746004240315,-34978.42579255,0.00024,2]
[359422681,1746004240324,-3307.36032099,0.00024161,2]
[359422682,1746004240333,-524.73515959,0.00024219,2]
[359422683,1746004240342,-500.0,0.00024329,2]
[359422684,1746004240351,-2392.69424247,0.00024383,5]
[359422685,1746004240360,-500.0,0.00024411,2]
[359422686,1746004240370,-1000.0,0.00024608,2]
[359422687,1746004240379,-150.0,0.00024657,2]
[359422688,1746004240389,-3307.36032099,0.00024709,2]
[359422689,1746004240398,-300.0,0.00024799,10]
[359422690,1746004240407,-1000.00009499,0.00024799,2]
[359422691,1746004240416,-555906.561888,0.000248,3]
[359422692,1746004240426,-258.22,0.00024809,2]